bitfinex-derivatives/quotes_ETHF0:USTF0_20250421
["timestamp","ask_amount","ask_price","bid_price","bid_amount"]
[1745255796208,10.04213242,1583.8,1583.7,54.02571]
[1745255796398,8.1719,1584.4,1583.7,54.02571]
[1745255796399,3.2078,1584.4,1584.3,1.26223]
[1745255796705,5.9005,1584.4,1584.3,1.26223]
[1745255797600,5.9005,1584.4,1584.3,4.47003]
[1745255797801,0.00948617,1584.5,1584.4,1.26215]
[1745255798003,0.00948617,1584.5,1584.4,7.51585]
[1745255798207,0.00948617,1584.5,1584.4,13.66185]
[1745255798503,0.00948617,1584.5,1584.4,59.63705]
[1745255799607,6.30338617,1584.5,1584.4,59.63705]
[1745255799804,6.30338617,1584.5,1584.4,48.20815]
[1745255800810,6.30338617,1584.5,1584.4,46.946]
[1745255801014,12.56545617,1584.5,1584.4,6.146]
[1745255801217,12.56545617,1584.5,1584.3,0.00948617]
[1745255801508,12.56551617,1584.5,1584.3,0.00948617]
[1745255801700,12.56547617,1584.5,1584.3,0.00948617]
[1745255801996,6.30338617,1584.5,1584.3,1.27169617]
[1745255802198,12.56547617,1584.5,1584.3,0.00948617]
[1745255802401,1.26215,1584.4,1584.3,0.00948617]
[1745255802700,7.40225,1584.4,1584.3,0.00948617]
[1745255802900,15.61005,1584.4,1584.3,40.80948617]
[1745255803097,9.3479,1584.4,1584.3,0.00948617]
[1745255803309,10.61005,1584.4,1584.3,0.00948617]
[1745255803508,15.61005,1584.4,1584.3,0.00948617]
[1745255804105,10.61005,1584.4,1584.3,0.00948617]
[1745255804414,9.3479,1584.4,1584.3,1.27171617]
[1745255804613,9.3479,1584.4,1584.3,0.00948617]
[1745255804814,9.3479,1584.4,1584.3,1.27171617]
[1745255805008,9.3479,1584.4,1584.3,0.00948617]
[1745255805517,9.3479,1584.4,1584.3,1.27171617]
[1745255805806,9.3479,1584.4,1584.3,0.00948617]
[1745255806012,10.61005,1584.4,1584.3,0.00948617]
[1745255806413,9.3479,1584.4,1584.3,0.00948617]
[1745255806816,9.3479,1584.4,1584.3,1.27171617]
[1745255807111,10.61005,1584.4,1584.3,0.00948617]
[1745255807415,9.3479,1584.4,1584.3,0.00948617]
[1745255807810,9.3479,1584.4,1584.3,1.27171617]
[1745255808711,6.1401,1584.4,1584.3,1.27171617]
[1745255808914,6.1401,1584.4,1584.3,7.09891617]
[1745255809108,6.1401,1584.4,1584.3,10.30671617]
[1745255809303,6.1401,1584.4,1584.3,3.21728617]
[1745255809714,6.1401,1584.4,1584.3,4.47951617]
[1745255813218,10.61005,1584.4,1584.3,0.00948617]
[1745255813419,9.3479,1584.4,1584.3,1.27171617]
[1745255813818,6.1401,1584.4,1584.3,1.27171617]
[1745255815116,6.1401,1584.4,1584.3,0.00948617]
[1745255815316,7.40225,1584.4,1584.3,0.00948617]
[1745255815516,7.40225,1584.4,1584.0,6.146]
[1745255815517,1.26239,1584.1,1584.0,6.146]
[1745255815722,1.26266,1583.8,1583.6,1.7504199]
[1745255815915,6.2913,1583.7,1583.6,1.26273]
[1745255816219,1.2628,1583.6,1583.5,6.146]
[1745255816520,3.2078,1583.6,1583.5,6.146]
[1745255816915,6.2913,1583.7,1583.5,7.40887]
[1745255817110,6.2913,1583.7,1583.6,1.26279]
[1745255817410,6.2913,1583.7,1583.5,6.146]
[1745255817717,3.2078,1583.6,1583.5,6.146]
[1745255818020,4.47059,1583.6,1583.5,6.146]
[1745255818220,4.47059,1583.6,1583.4,0.00948617]
[1745255818221,1.26287,1583.5,1583.4,0.00948617]
[1745255818523,7.55137,1583.5,1583.4,0.00948617]
[1745255818722,12.57767,1583.5,1583.4,0.00948617]
[1745255819222,11.3148,1583.5,1583.4,1.27243617]
[1745255819410,11.3148,1583.5,1583.4,0.00948617]
[1745255819811,6.2885,1583.5,1583.4,1.27243617]
[1745255820019,0.13301383,1583.5,1583.4,4.48023617]
[1745255820318,0.00948617,1583.6,1583.4,4.48023617]
[1745255820319,0.00948617,1583.6,1583.5,1.26287]
[1745255820814,0.00948617,1583.6,1583.5,6.99727]
[1745255821214,0.00948617,1583.6,1583.5,13.14327]
[1745255821822,0.00948617,1583.6,1583.5,18.14327]
[1745255822015,3.2078,1583.8,1583.7,1.26271]
[1745255822318,5.0263,1584.0,1583.9,1.26255]
[1745255823623,10.9887,1584.0,1583.8,7.24016]
[1745255823824,10.9887,1584.0,1583.9,1.26255]
[1745255824118,1.26279,1583.6,1583.4,0.00948617]
[1745255824321,10.43307,1583.5,1583.4,0.00948617]
[1745255824723,15.43307,1583.5,1583.4,0.00948617]
[1745255825517,14.1702,1583.5,1583.4,0.00948617]
[1745255825719,15.43307,1583.5,1583.4,0.00948617]
[1745255826020,9.1702,1583.5,1583.4,1.27243617]
[1745255826216,5.9624,1583.5,1583.4,1.27243617]
[1745255826823,5.9624,1583.5,1583.4,7.60573617]
[1745255827118,5.1924,1583.7,1583.4,6.34278617]
[1745255827324,5.8455,1583.6,1583.5,1.26282]
[1745255827821,5.8455,1583.6,1583.4,7.60568617]
[1745255828022,9.0533,1583.6,1583.5,1.26287]
[1745255828319,9.4945,1583.6,1583.5,1.26287]
[1745255828523,6.2867,1583.6,1583.5,1.26287]
[1745255828721,0.4412,1583.6,1583.5,4.47067]
[1745255829424,0.4412,1583.6,1583.5,7.40887]
[1745255830126,0.4412,1583.6,1583.5,1.26287]
[1745255830320,3.649,1583.6,1583.4,0.00948617]
[1745255830519,1.26313,1583.2,1582.8,3.6661641]
[1745255830723,3.2078,1583.4,1583.0,3.2078]
[1745255830919,5.2161,1583.5,1583.2,3.2078]
[1745255831115,11.1253,1583.5,1583.3,7.60686]
[1745255831319,11.1253,1583.5,1583.4,1.26295]
[1745255831723,11.1253,1583.5,1583.3,7.61634617]
[1745255831918,14.3331,1583.5,1583.3,1.27244617]
[1745255832220,14.3331,1583.5,1583.4,1.26295]
[1745255833329,5.24506735,1584.2,1583.5,3.15718]
[1745255833629,3.98273735,1584.2,1584.1,1.26239]
[1745255833833,10.28653735,1584.2,1584.1,1.26239]
[1745255834820,18.49433735,1584.2,1583.9,6.146]
[1745255835030,18.49433735,1584.2,1584.1,1.26239]
[1745255835031,16.33644625,1584.2,1584.1,1.26239]
[1745255835228,16.33644625,1584.2,1583.9,12.4671]
[1745255835528,16.33644625,1584.2,1584.0,1.26246]
[1745255835730,16.33644625,1584.2,1583.9,13.72958]
[1745255835929,17.59876625,1584.2,1584.0,1.26245]
[1745255836128,20.80657625,1584.2,1584.0,1.26247]
[1745255836323,1.26241,1584.1,1583.8,1.26258]
[1745255836528,6.3038,1584.0,1583.9,1.26255]
[1745255837327,13.24044625,1584.2,1584.1,1.26239]
[1745255837519,19.49154625,1584.2,1584.1,1.26239]
[1745255837723,19.49154625,1584.2,1584.0,7.59735]
[1745255837724,20.75386625,1584.2,1584.0,7.59735]
[1745255837924,17.54606625,1584.2,1584.0,7.59735]
[1745255838126,16.28374625,1584.2,1584.1,1.26239]
[1745255838433,16.28374625,1584.2,1584.0,12.4809]
[1745255838728,16.28374625,1584.2,1584.0,6.146]
[1745255839025,16.28374625,1584.2,1584.1,1.26239]
[1745255839218,10.03264625,1584.2,1584.1,4.47019]
[1745255839630,10.03264625,1584.2,1584.1,9.47279]
[1745255839927,10.03264625,1584.2,1584.0,24.78971]
[1745255840229,1.26239,1584.1,1584.0,6.146]
[1745255840428,6.275,1584.1,1584.0,7.40847]
[1745255841133,6.275,1584.1,1584.0,13.55377]
[1745255841327,10.03264625,1584.2,1584.0,13.55377]
[1745255841533,10.03264625,1584.2,1584.1,4.47019]
[1745255841932,10.03264625,1584.2,1584.1,9.47019]
[1745255842426,10.03264625,1584.2,1584.1,4.47019]
[1745255842826,4.02334456,1584.2,1584.1,4.47019]
[1745255843236,4.02334456,1584.2,1584.1,9.47019]
[1745255843728,4.02334456,1584.2,1584.1,50.27019]
[1745255844133,4.02334456,1584.2,1584.1,45.27019]
[1745255844835,4.02334456,1584.2,1584.1,50.27019]
[1745255844836,1.28204456,1584.2,1584.1,50.27019]
[1745255845133,4.56e-06,1584.2,1584.1,50.27019]
[1745255845330,8.04668913,1584.4,1584.1,49.0078]
[1745255845537,8.04668913,1584.4,1584.3,4.47003]
[1745255845736,10.03264625,1584.5,1584.4,1.26215]
[1745255846034,10.03264625,1584.5,1584.4,7.30305]
[1745255846229,8.36512625,1584.5,1584.4,59.24905]
[1745255846432,22.62989569,1584.8,1584.7,1.26191]
[1745255846739,22.62989569,1584.8,1584.7,10.26571]
[1745255847239,22.62989569,1584.8,1584.7,16.41171]
[1745255847438,22.62989569,1584.8,1584.7,21.55341]
[1745255847832,0.00622242,1584.9,1584.8,1.26183]
[1745255848033,5.94012242,1584.9,1584.8,1.26183]
[1745255848640,0.00622242,1584.9,1584.8,7.30273]
[1745255850337,0.00622242,1584.9,1584.8,6.0409]
[1745255850542,7.42719242,1584.9,1584.7,52.742]
[1745255850839,7.42719242,1584.9,1584.7,46.946]
[1745255850840,1.26183,1584.8,1584.7,46.946]
[1745255851139,6.1592,1584.8,1584.5,3.2078]
[1745255851343,1.26202,1584.6,1584.4,1.26213]
[1745255851657,6.1592,1584.5,1584.3,7.02288617]
[1745255851842,7.42129,1584.5,1584.3,5.76068617]
[1745255852143,7.42129,1584.5,1584.3,1.27171617]
[1745255852636,4.46995,1584.4,1584.3,0.00948617]
[1745255852938,3.15575,1584.3,1583.8,1.26261]
[1745255853141,4.47024,1584.1,1583.8,1.26261]
[1745255853328,6.3656,1584.0,1583.7,49.9941]
[1745255853533,1.26262,1583.9,1583.7,3.2078]
[1745255853734,6.3656,1583.8,1583.6,5.9863]
[1745255853935,6.3656,1583.8,1583.7,1.26271]
[1745255854132,7.62825,1583.8,1583.6,7.24903]
[1745255854334,1.26279,1583.6,1583.5,3.21728617]
[1745255854541,6.3656,1583.8,1583.5,3.21728617]
[1745255854739,6.3656,1583.8,1583.6,1.26277]
[1745255855035,5.42988617,1583.9,1583.6,5.8639]
[1745255855242,0.00948617,1583.9,1583.8,1.26263]
[1745255856040,0.00948617,1583.9,1583.8,7.12653]
[1745255856941,6.17e-06,1583.9,1583.8,12.12653]
[1745255857145,6.2848,1584.7,1584.6,1.26199]
[1745255857345,13.6506,1584.9,1584.5,9.0717]
[1745255857546,19.9354,1584.9,1584.7,1.26188]
[1745255857738,16.7276,1584.9,1584.7,1.26188]
[1745255857938,17.98938,1584.9,1584.6,1.26196]
[1745255858142,16.7276,1584.9,1584.5,3.2078]
[1745255858343,16.73382242,1584.9,1584.6,5.87288617]
[1745255858648,16.73382242,1584.9,1584.7,1.2619]
[1745255859248,16.73382242,1584.9,1584.8,1.26183]
[1745255859444,16.73382242,1584.9,1584.8,5.8634]
[1745255859750,16.73382242,1584.9,1584.7,7.40791]
[1745255860248,16.73382242,1584.9,1584.7,1.26191]
[1745255860747,16.73382242,1584.9,1584.6,5.87288617]
[1745255860748,16.73382242,1584.9,1584.8,1.26183]
[1745255862052,4.99673625,1585.0,1584.9,1.26175]
[1745255862241,4.99673625,1585.0,1584.9,10.68535]
[1745255863054,4.99673625,1585.0,1584.9,56.48535]
[1745255863346,4.99673625,1585.0,1584.9,67.73805]
[1745255863946,4.99673625,1585.0,1584.9,62.73805]
[1745255864650,2.27137625,1585.0,1584.9,67.73805]
[1745255864851,6.25e-06,1585.0,1584.9,67.73805]
[1745255865051,6.25e-06,1585.0,1584.9,62.73805]
[1745255865354,6.25e-06,1585.0,1584.9,57.63135]
[1745255867047,6.25e-06,1585.0,1584.9,62.63135]
[1745255868852,6.25e-06,1585.0,1584.9,63.10473826]
[1745255869051,6.25e-06,1585.0,1584.9,57.63135]
[1745255869246,6.25e-06,1585.0,1584.9,63.41535]
[1745255869446,6.25e-06,1585.0,1584.9,57.63135]
[1745255869646,6.25e-06,1585.0,1584.9,63.41535]
[1745255872354,6.25e-06,1585.0,1584.9,68.41535]
[1745255872957,3.2078,1586.2,1585.1,6.327]
[1745255873147,3.2078,1586.4,1585.8,6.36034]
[1745255873450,13.25169397,1586.1,1585.8,1.261]
[1745255873659,13.25169397,1586.1,1585.9,1.26093]
[1745255873846,13.25169397,1586.1,1585.7,8.87408]
[1745255874047,13.25169397,1586.1,1585.9,1.2609]
[1745255874453,13.25169397,1586.1,1586.0,1.26088]
[1745255875454,10.04389397,1586.1,1586.0,4.46868]
[1745255875649,10.04389397,1586.1,1586.0,1.26088]
[1745255876555,19.51254397,1586.1,1585.8,1.26102]
[1745255876756,14.51254397,1586.1,1585.8,1.26102]
[1745255877156,13.25169397,1586.1,1585.7,5.8813]
[1745255877345,6.4651,1586.0,1585.7,5.8813]
[1745255877550,5.2042,1586.0,1585.8,1.26102]
[1745255878257,5.7664,1585.9,1585.8,1.26102]
[1745255879353,10.7664,1585.9,1585.7,1.26106]
[1745255879657,5.7664,1585.9,1585.8,1.26104]
[1745255880048,5.7664,1585.9,1585.7,1.26104]
[1745255880245,5.7664,1585.9,1585.8,1.26104]
[1745255881857,3.2078,1586.1,1585.6,9.051]
[1745255882157,5.8492,1586.5,1586.4,1.26049]
[1745255882353,5.8492,1586.5,1586.4,42.06049]
[1745255882555,10.8492,1586.5,1586.3,5.6739]
[1745255882749,1.26056,1586.4,1586.3,0.00945476]
[1745255882953,11.3174,1586.4,1586.3,0.00945476]
[1745255883155,16.3174,1586.4,1586.3,0.00945476]
[1745255883357,17.57796,1586.4,1586.3,0.00945476]
[1745255884158,16.3174,1586.4,1585.6,1.26113]
[1745255884353,3.2078,1585.7,1585.4,1.26129]
[1745255884661,0.00923855,1585.4,1585.3,1.26137]
[1745255884955,5.8745,1585.4,1585.3,1.26137]
[1745255885162,5.8745,1585.4,1585.2,46.4739]
[1745255885163,3.2078,1585.5,1585.2,5.6739]
[1745255885355,1.26138,1585.4,1585.2,6.94483476]
[1745255885654,5.8128,1585.3,1585.2,0.00945476]
[1745255886247,3.21715013,1585.5,1585.4,1.26135]
[1745255886451,0.00935013,1585.5,1585.4,1.26135]
[1745255886756,0.00935013,1585.5,1585.4,7.01515]
[1745255887056,5.82215013,1585.5,1585.4,7.01515]
[1745255887261,4.9353,1585.9,1585.8,1.26104]
[1745255887463,15.89066145,1585.9,1585.8,1.26104]
[1745255887650,15.89066145,1585.9,1585.7,1.26108]
[1745255887855,15.89066145,1585.9,1585.7,1.26105]
[1745255888055,3.2078,1586.0,1585.8,1.26104]
[1745255888255,1.26084,1586.1,1585.9,5.8991]
[1745255888464,7.36478,1586.0,1585.7,1.26105]
[1745255888661,7.36484,1586.0,1585.8,1.26104]
[1745255888963,6.1039,1586.0,1585.9,1.26096]
[1745255889968,3.2078,1586.1,1586.0,1.26088]
[1745255890262,3.2078,1586.2,1585.9,9.3538]
[1745255890456,9.3117,1586.2,1586.0,7.15993]
[1745255890656,9.3117,1586.2,1586.0,7.15997]
[1745255890851,9.3117,1586.2,1585.9,6.146]
[1745255891059,9.3117,1586.2,1585.9,7.40692]
[1745255891265,1.26082,1586.1,1585.9,1.26092]
[1745255891465,6.0891,1586.1,1586.0,1.26088]
[1745255892162,6.0891,1586.1,1585.8,5.8991]
[1745255892361,6.0891,1586.1,1586.0,1.26088]
[1745255892560,5.4786,1586.4,1586.3,1.26064]
[1745255893159,5.4786,1586.4,1586.2,1.27013476]
[1745255893364,11.5677,1586.4,1586.2,7.41613476]
[1745255893566,12.82831,1586.4,1586.2,6.15545476]
[1745255893969,4.46844,1586.3,1586.2,6.15545476]
[1745255894160,10.55754,1586.3,1586.2,1e-08]
[1745255894460,1.26073,1586.2,1586.0,1.26087]
[1745255894667,5.6288,1586.1,1586.0,1.26087]
[1745255895459,0.00945475,1586.2,1586.1,1.2608]
[1745255895763,0.00945475,1586.2,1586.1,7.0058]
[1745255895959,0.00945475,1586.2,1586.1,5.745]
[1745255896171,1.27017475,1586.2,1586.0,1.26081]
[1745255896464,5.6288,1586.1,1585.9,7.01535476]
[1745255896770,6.23497475,1586.2,1585.9,5.75445476]
[1745255896962,10.60305475,1586.2,1585.9,5.75445476]
[1745255897273,10.60305475,1586.2,1586.1,1.2608]
[1745255897560,10.60305475,1586.2,1586.0,4.46862]
[1745255897761,11.86379475,1586.2,1586.0,10.15872]
[1745255898162,11.86379475,1586.2,1586.0,8.8979]
[1745255898467,15.07159475,1586.2,1586.0,6.95098]
[1745255898766,3.21725475,1586.2,1586.1,1.2608]
[1745255899567,0.00945475,1586.2,1586.1,1.2608]
[1745255900267,5.80395475,1586.2,1586.0,6.95093]
[1745255900463,1.26088,1586.0,1585.9,0.00945476]
[1745255900864,7.41848,1586.0,1585.9,0.00945476]
[1745255901259,6.1576,1586.0,1585.9,1.27041476]
[1745255901460,9.59636,1586.1,1585.9,1.27041476]
[1745255901666,0.00945475,1586.2,1586.1,1.2608]
[1745255902062,6.16705475,1586.2,1586.1,42.0608]
[1745255902762,10.63557475,1586.2,1585.9,0.00945476]
[1745255902961,4.46868,1586.0,1585.9,1e-08]
[1745255903165,4.46868,1586.0,1585.2,10.59285]
[1745255903166,1.26118,1585.7,1585.5,7.13518]
[1745255903367,11.5101,1585.9,1585.5,9.07246145]
[1745255903572,1.26104,1585.8,1585.7,1.26107]
[1745255903759,14.70866145,1585.9,1585.6,1.26115]
[1745255903966,1.26108,1585.8,1585.6,1.26114]
[1745255904270,1.2611,1585.8,1585.6,1.27061476]
[1745255904471,1.26112,1585.7,1585.6,0.00945476]
[1745255904671,8.87191,1585.9,1585.6,1.26141621]
[1745255904973,8.86267145,1585.9,1585.6,0.00021621]
[1745255905265,1.26112,1585.7,1585.6,0.00021621]
[1745255905471,1.27022234,1585.6,1585.5,7.15218]
[1745255905671,0.00902234,1585.6,1585.5,7.15218]
[1745255905968,1.26113,1585.7,1585.5,7.14315766]
[1745255906367,1.26113,1585.7,1585.5,10.35095766]
[1745255906770,5.7195,1585.8,1585.5,9.08967766]
[1745255906966,8.03637175,1586.1,1585.7,6.3606]
[1745255907271,1.26088,1586.0,1585.8,1.26098]
[1745255907459,1.26097,1585.9,1585.7,1.26107]
[1745255907664,7.06784,1586.0,1585.8,1.26104]
[1745255907865,6.06159839,1586.0,1585.6,11.61867]
[1745255908072,6.06159839,1586.0,1585.9,1.26096]
[1745255909169,6.06159839,1586.0,1585.9,13.02076]
[1745255909967,6.06159839,1586.0,1585.9,11.7598]
[1745255910471,6.06159839,1586.0,1585.9,13.02076]
[1745255911975,0.00945475,1586.2,1586.0,1.26085]
[1745255912177,7.31897475,1586.2,1586.1,6.18]
[1745255912376,7.31899475,1586.2,1586.0,3.2078]
[1745255912576,6.05825475,1586.2,1586.0,10.14974]
[1745255912774,7.31898475,1586.2,1586.0,10.14974]
[1745255912978,10.52682475,1586.2,1586.0,1.26088]
[1745255913180,6.05825475,1586.2,1586.0,1.26083]
[1745255913377,6.05825475,1586.2,1586.1,6.9419]
[1745255913882,6.05825475,1586.2,1586.1,5.6811]
[1745255914076,0.00945475,1586.2,1586.1,6.9419]
[1745255914472,6.18585475,1586.2,1586.1,6.9419]
[1745255915181,7.44657475,1586.2,1586.0,1.26081]
[1745255915383,6.18585475,1586.2,1586.1,1.2608]
[1745255915980,0.00945475,1586.2,1586.1,1.2608]
[1745255916573,0.00945475,1586.2,1586.1,4.4686]
[1745255916773,0.00945475,1586.2,1586.1,9.6792]
[1745255917169,6.06159839,1586.3,1586.1,8.4184]
[1745255917380,10.0456029,1586.5,1586.4,1.26056]
[1745255918282,13.2534029,1586.5,1586.4,13.49126]
[1745255918682,10.0456029,1586.5,1586.4,13.49126]
[1745255918871,0.00945476,1586.6,1586.5,1.26048]
[1745255919074,0.00945476,1586.6,1586.5,10.39628]
[1745255919273,10.12671152,1586.6,1586.5,16.54228]
[1745255923187,12.07231177,1586.9,1586.8,1.26024]
[1745255923377,12.07231177,1586.9,1586.6,3.15101]
[1745255923579,12.07231177,1586.9,1586.8,1.26024]
[1745255923580,18.12121177,1586.9,1586.8,1.26024]
[1745255924381,12.07231177,1586.9,1586.8,1.26024]
[1745255925379,12.07231177,1586.9,1586.7,9.2028]
[1745255925579,17.92731177,1586.9,1586.8,1.26024]
[1745255925883,5.855,1586.9,1586.8,1.26024]
[1745255926691,1.26029,1586.8,1586.5,1.26046]
[1745255926884,5.855,1586.7,1586.5,1.26046]
[1745255927189,10.876,1586.8,1586.7,1.26032]
[1745255927390,10.876,1586.8,1586.6,1.26033]
[1745255927685,0.00945476,1587.0,1586.9,1.26016]
[1745255927890,0.00945476,1587.0,1586.9,4.46796]
[1745255928081,0.00945476,1587.0,1586.9,10.61396]
[1745255928488,0.00945476,1587.0,1586.9,7.40616]
[1745255929287,0.00945476,1587.0,1586.9,1.26016]
[1745255929981,0.00945476,1587.0,1586.8,6.2114]
[1745255930185,0.00945476,1587.0,1586.9,1.26016]
[1745255930384,0.00945476,1587.0,1586.9,4.46796]
[1745255930785,0.00945476,1587.0,1586.9,1.26016]
[1745255931085,0.00945476,1587.0,1586.9,4.46796]
[1745255931287,0.00945476,1587.0,1586.9,10.61396]
[1745255931489,0.00945476,1587.0,1586.9,16.07716]
[1745255934088,0.00945476,1587.0,1586.9,21.07716]
[1745255934289,4.76e-06,1587.0,1586.9,21.07716]
[1745255935890,4.76e-06,1587.0,1586.9,16.07716]
[1745255936283,4.76e-06,1587.0,1586.9,21.07716]
[1745255936590,6.30754,1587.7,1587.4,1.25971]
[1745255936884,5.8378,1587.6,1587.5,1.25969]
[1745255937092,5.8378,1587.6,1587.5,7.40569]
[1745255937682,5.8378,1587.6,1587.5,12.0154]
[1745255937878,5.8378,1587.6,1587.5,13.27509]
[1745255938083,5.048,1587.7,1587.5,5.8694]
[1745255938292,11.2734,1587.7,1587.5,1.25966]
[1745255938493,11.2734,1587.7,1587.4,0.00945476]
[1745255938687,11.2734,1587.7,1587.4,5.87885476]
[1745255938887,11.2734,1587.7,1587.6,1.25961]
[1745255939688,16.2734,1587.7,1587.4,0.00945476]
[1745255939886,1.25969,1587.5,1587.4,0.00945476]
[1745255940088,8.9698,1587.6,1587.5,1.25969]
[1745255940288,13.9698,1587.6,1587.5,1.25969]
[1745255940683,8.9698,1587.6,1587.5,1.25969]
[1745255940879,5.048,1587.7,1587.6,1.25961]
[1745255941084,12.07231177,1587.9,1587.6,3.2078]
[1745255941293,12.07231177,1587.9,1587.8,1.25945]
[1745255941592,4.9751,1588.1,1588.0,1.25929]
[1745255941997,9.9751,1588.1,1588.0,1.25929]
[1745255942788,4.9751,1588.1,1588.0,1.25929]
[1745255944093,6.78332017,1588.2,1588.1,1.25921]
[1745255944298,6.78332017,1588.2,1588.1,12.32031]
[1745255944890,5.20403017,1588.2,1588.1,12.32031]
[1745255945090,5.20403017,1588.2,1588.1,17.32031]
[1745255945293,3.86920017,1588.2,1588.1,12.32031]
[1745255945489,3.86920017,1588.2,1588.1,7.32541]
[1745255945990,3.86920017,1588.2,1588.1,12.32541]
[1745255946195,5.2963,1588.7,1588.2,1.25913]
[1745255946395,5.2963,1588.7,1588.6,4.46661]
[1745255946694,10.06693101,1589.0,1588.7,1.25873]
[1745255946896,10.06693101,1589.0,1588.9,1.25858]
[1745255947392,10.06693101,1589.0,1588.9,6.25858]
[1745255947393,6.23184101,1589.0,1588.9,6.25858]
[1745255947590,6.23184101,1589.0,1588.9,6.29778]
[1745255947791,6.23184101,1589.0,1588.9,6.93138]
[1745255947996,6.23184101,1589.0,1588.9,47.73138]
[1745255949092,6.23184101,1589.0,1588.9,53.87738]
[1745255949498,6.23184101,1589.0,1588.9,48.20458]
[1745255949694,6.23184101,1589.0,1588.9,7.40458]
[1745255950100,6.23184101,1589.0,1588.9,7.30928]
[1745255951289,5.441,1589.4,1589.0,3.14625]
[1745255951595,0.50670471,1590.3,1589.6,1.258]
[1745255951796,5.1206,1589.7,1589.3,3.14559]
[1745255951999,5.2194,1589.6,1589.5,1.25803]
[1745255952194,5.2194,1589.6,1589.3,3.14559]
[1745255952195,5.2194,1589.6,1589.3,0.00945476]
[1745255952395,5.2194,1589.6,1589.3,3.15507476]
[1745255952599,5.2194,1589.6,1589.5,1.2581]
[1745255953189,0.8278,1589.6,1589.5,1.2581]
[1745255953496,96.031,1590.4,1590.0,1.25771]
[1745255953497,5.749,1590.1,1590.0,1.25771]
[1745255953794,9.06792,1590.1,1590.0,1.25771]
[1745255953998,14.06792,1590.1,1590.0,1.25771]
[1745255954195,20.21392,1590.1,1590.0,1.25771]
[1745255954396,6.25712,1590.1,1590.0,4.46551]
[1745255954597,2.80362,1590.1,1590.0,1.25771]
[1745255954799,1e-05,1590.1,1590.0,1.25771]
[1745255954999,1e-05,1590.1,1590.0,7.30931]
[1745255955198,3.2078,1590.4,1590.3,1.25747]
[1745255955500,8.2078,1590.4,1590.3,1.25747]
[1745255955999,0.11066801,1590.4,1590.3,4.46527]
[1745255956199,15.28011177,1591.0,1590.4,3.14348]
[1745255956402,5.1522,1590.9,1590.8,1.25704]
[1745255956598,5.1522,1590.9,1590.7,1.25713]
[1745255956599,11.84535,1590.9,1590.7,1.25713]
[1745255956800,8.9548,1590.8,1590.7,1.25715]
[1745255957011,5.747,1590.8,1590.7,1.25715]
[1745255957201,16.893,1590.8,1590.7,1.25715]
[1745255957399,11.146,1590.8,1590.6,1.25716]
[1745255957598,10.5883,1590.7,1590.5,3.2078]
[1745255957798,16.3353,1590.7,1590.6,1.25723]
[1745255957998,24.5431,1590.7,1590.2,9.04885476]
[1745255958204,3.2078,1590.5,1590.2,0.00945476]
[1745255958405,4.46527,1590.3,1590.2,1e-08]
[1745255958600,4.57508544,1590.3,1590.2,1e-08]
[1745255958804,27.7178295,1590.3,1590.2,1e-08]
[1745255959102,33.8638295,1590.3,1590.2,1e-08]
[1745255959310,1.25794,1589.8,1589.5,1.25808]
[1745255959509,18.43855,1589.7,1589.5,1.25808]
[1745255959698,22.4845,1589.7,1589.6,1.25802]
[1745255960012,22.4845,1589.7,1589.3,1.25819]
[1745255960013,7.19295596,1589.6,1589.3,1.25819]
[1745255960305,37.88525596,1589.7,1589.3,1.25819]
[1745255960306,6.25577928,1589.7,1589.4,4.46592]
[1745255960499,11.95335476,1589.6,1589.3,0.00945476]
[1745255960706,3.2078,1589.4,1589.3,0.00945476]
[1745255960906,11.95335476,1589.6,1589.4,1.25815]
[1745255961099,11.95335476,1589.6,1589.5,1.2581]
[1745255961411,0.00945476,1589.6,1589.5,4.4659]
[1745255961595,0.00945476,1589.6,1589.5,16.78921]
[1745255962294,0.00945476,1589.6,1589.5,11.78921]
[1745255963609,0.00945476,1589.6,1589.5,16.78921]
[1745255963811,3.2078,1590.1,1589.7,3.14487]
[1745255964008,9.1503,1590.1,1589.8,5.8677]
[1745255964212,5.9425,1590.1,1590.0,1.25771]
[1745255965311,5.9425,1590.1,1590.0,8.68642]
[1745255965709,10.3983,1590.4,1590.2,1.25751]
[1745255966011,10.9948,1590.4,1590.3,1.25747]
[1745255966311,10.9948,1590.4,1590.3,5.9731]
[1745255966903,10.9948,1590.4,1590.3,7.42871]
[1745255967809,11.38152,1590.8,1590.3,12.42871]
[1745255967810,5.031,1590.8,1590.3,12.42871]
[1745255968005,11.95528,1590.8,1590.5,4.46504]
[1745255968310,7.00204,1590.9,1590.6,1.25721]
[1745255968503,7.00204,1590.9,1590.5,4.66341]
[1745255968504,11.4122,1590.9,1590.5,4.66341]
[1745255968704,1.25734,1590.5,1590.3,3.2078]
[1745255968898,5.744,1590.6,1590.1,3.21725476]
[1745255969108,1.25752,1590.3,1590.1,3.21725476]
[1745255969405,3.14407,1590.1,1589.3,3.2078]
[1745255969601,19.23578565,1590.2,1588.9,3.14643]
[1745255969602,3.2078,1589.6,1588.9,10.6486]
[1745255969807,6.35289,1589.6,1589.0,44.0078]
[1745255970007,3.2078,1589.4,1589.2,1.25829]
[1745255970311,6.92533,1589.5,1589.2,3.2078]
[1745255970610,5.67665476,1589.5,1589.2,4.46608]
[1745255970800,6.93477476,1589.5,1589.2,3.2078]
[1745255971311,3.2078,1589.4,1589.1,0.00945476]
[1745255971504,1.25834,1589.2,1589.1,0.00945476]
[1745255971718,6.3537,1589.2,1588.7,0.1]
[1745255971908,4.46646,1588.8,1588.7,0.1]
[1745255972209,8.9518,1588.8,1588.0,8.32345888]
[1745255972407,3.2078,1588.3,1588.2,1.25913]
[1745255972599,3.2078,1588.3,1588.1,1.25916]
[1745255972800,3.2078,1588.3,1588.1,0.00945476]
[1745255972801,4.46688,1588.3,1588.1,0.00945476]
[1745255973006,3.2078,1588.2,1588.1,0.00945476]
[1745255973200,0.00945476,1588.4,1588.3,1.25905]